bitfinex-derivatives/quotes_SOLF0:USTF0_20250312
["timestamp","ask_amount","ask_price","bid_price","bid_amount"]
[1741786183825,0.05695264,127.65,127.64,7.8359]
[1741786186237,0.05695264,127.65,127.63,40.45902895]
[1741786187134,0.05695264,127.65,127.64,7.8359]
[1741786188036,31.86788449,127.76,127.64,31.86788449]
[1741786188235,7.8314,127.72,127.65,4.2983]
[1741786188434,7.8314,127.72,127.69,7.8325]
[1741786188733,84.53268449,127.76,127.65,4.2983]
[1741786188940,84.53268449,127.76,127.67,7.8337]
[1741786189141,0.05637532,127.72,127.69,0.0579621]
[1741786189534,7.832,127.71,127.69,0.0579621]
[1741786189837,0.05637532,127.72,127.69,0.0579621]
[1741786190237,7.88777532,127.72,127.69,0.0579621]
[1741786190437,0.05637532,127.72,127.69,7.8906621]
[1741786191444,0.05637532,127.72,127.7,7.8322]
[1741786191635,0.05637532,127.72,127.69,0.0579621]
[1741786193042,7.8316,127.71,127.69,0.0579621]
[1741786193441,7.8319,127.71,127.69,0.0579621]
[1741786193642,0.05637532,127.72,127.69,0.0579621]
[1741786194943,0.05637532,127.72,127.7,7.8321]
[1741786195144,0.05637532,127.72,127.69,0.0579621]
[1741786196147,0.05637532,127.72,127.7,7.8322]
[1741786196351,0.05637532,127.72,127.69,0.0579621]
[1741786196950,0.05637532,127.72,127.71,7.8316]
[1741786197850,250.7713,127.81,127.71,7.8316]
[1741786197851,31.86788449,127.82,127.71,40.32]
[1741786198043,43.96068449,127.82,127.71,40.32]
[1741786198246,7.8283,127.77,127.71,40.32]
[1741786198745,84.28068449,127.82,127.71,40.32]
[1741786198949,0.05054674,127.75,127.73,0.05523515]
[1741786199148,7.828,127.77,127.73,0.05523515]
[1741786199347,0.0534615,127.75,127.73,7.83]
[1741786199545,84.28068449,127.82,127.74,0.05903678]
[1741786199739,0.05639028,127.75,127.71,40.32]
[1741786200049,84.28068449,127.82,127.77,0.04983935]
[1741786200241,12.0928,127.82,127.72,31.86788449]
[1741786200444,7.8267,127.79,127.78,0.05409247]
[1741786200655,12.5702,127.83,127.78,0.05409247]
[1741786200956,0.05950085,127.8,127.78,0.05409247]
[1741786201247,7.8267,127.79,127.78,9.247e-05]
[1741786201556,31.86788449,127.79,127.7,12.6487]
[1741786201746,31.86788449,127.76,127.65,40.3]
[1741786201948,76.44598449,127.78,127.67,7.9556]
[1741786202143,31.86788449,127.76,127.67,7.9556]
[1741786202651,7.8316,127.71,127.7,0.05710792]
[1741786202852,40.3520365,127.73,127.7,0.05710792]
[1741786203052,40.3520365,127.73,127.7,7.92e-06]
[1741786203251,7.8316,127.71,127.7,7.92e-06]
[1741786203460,31.86788449,127.71,127.58,32.4730213]
[1741786203663,7.8384,127.6,127.58,32.4730213]
[1741786203865,40.28,127.64,127.58,32.4730213]
[1741786204059,31.86788449,127.68,127.58,32.4730213]
[1741786204260,40.42428449,127.7,127.59,31.86788449]
[1741786204455,8.5564,127.7,127.62,31.86788449]
[1741786204657,0.05949098,127.66,127.63,7.89482524]
[1741786204865,17.11253558,127.76,127.65,31.86788449]
[1741786205160,10.47695024,127.76,127.7,31.86788449]
[1741786205366,10.47695024,127.76,127.71,40.28]
[1741786206159,0.05622694,127.75,127.72,0.05007603]
[1741786206362,40.35622694,127.75,127.72,0.05007603]
[1741786206567,48.62962694,127.75,127.72,0.05007603]
[1741786206767,40.35622694,127.75,127.72,0.05007603]
[1741786207069,0.05622694,127.75,127.72,0.05007603]
[1741786207462,0.05622694,127.75,127.72,40.33007603]
[1741786208060,31.86788449,127.84,127.73,31.86788449]
[1741786208667,48.5406,127.85,127.73,31.86788449]
[1741786209057,0.05392578,127.8,127.78,0.05248651]
[1741786209261,8.2606,127.85,127.78,0.05248651]
[1741786209467,0.05438456,127.8,127.78,0.05248651]
[1741786209666,7.8247,127.83,127.78,0.05248651]
[1741786209967,0.0584026,127.8,127.78,0.05248651]
[1741786210168,8.2606,127.85,127.78,0.05248651]
[1741786210367,0.05381021,127.8,127.78,0.05248651]
[1741786210558,0.05663725,127.8,127.77,12.5622]
[1741786210763,0.05663725,127.8,127.78,7.87681909]
[1741786210965,0.05663725,127.8,127.78,0.05011909]
[1741786211169,0.05663725,127.8,127.79,7.8267]
[1741786211365,40.20288449,127.89,127.78,31.91800358]
[1741786211669,7.8226,127.86,127.78,31.86788449]
[1741786211866,41.90780098,127.92,127.83,31.86788449]
[1741786212170,41.90780098,127.92,127.85,31.86788449]
[1741786212471,0.05294439,127.9,127.87,0.05079597]
[1741786213458,31.92082888,127.9,127.87,0.05079597]
[1741786213662,8.4273,127.89,127.87,0.05079597]
[1741786213871,7.8212,127.88,127.87,0.05079597]
[1741786214068,0.05294439,127.9,127.87,0.05079597]
[1741786214872,35.92411376,127.95,127.89,7.8206]
[1741786215072,7.8175,127.95,127.88,40.24]
[1741786215273,226.74982322,127.98,127.88,40.24]
[1741786215969,7.8165,127.96,127.9,7.8194]
[1741786216175,0.0547272,127.94,127.92,0.05155031]
[1741786216373,0.0547272,127.94,127.92,40.27155031]
[1741786216567,0.0547272,127.94,127.92,0.05155031]
[1741786217675,0.0547272,127.94,127.93,40.22]
[1741786217974,8.3345,128.01,127.93,48.038]
[1741786218172,8.3345,128.01,127.93,40.22]
[1741786218471,41.63561917,128.08,127.98,51.46561574]
[1741786218677,7.8106,128.06,128.01,7.8128]
[1741786218873,0.0547796,128.04,128.02,0.05325739]
[1741786219374,0.0547796,128.04,128.03,40.2]
[1741786219873,0.0547796,128.04,128.02,0.05325739]
[1741786220376,91.70039534,128.04,127.95,4.0571]
[1741786220573,4.216,128.09,127.99,51.46561574]
[1741786220767,4.216,128.09,128.01,51.46561574]
[1741786220974,12.0245,128.09,128.03,51.46561574]
[1741786221271,4.216,128.09,128.04,40.18]
[1741786221476,4.216,128.09,128.01,48.5767]
[1741786221676,0.05609637,128.07,128.05,0.05403212]
[1741786221878,0.05609637,128.07,128.05,3.212e-05]
[1741786222077,7.8102,128.06,128.05,3.212e-05]
[1741786222577,0.05609637,128.07,128.05,3.212e-05]
[1741786223081,262.0483056,128.15,128.05,51.46564786]
[1741786223784,7.8078,128.1,128.05,51.46564786]
[1741786223972,154.65795273,128.13,128.05,3.212e-05]
[1741786224175,0.05266797,128.09,128.05,3.212e-05]
[1741786224786,234.64,128.21,128.06,51.46561574]
[1741786224979,12.6602,128.2,128.1,51.46561574]
[1741786225181,12.6602,128.2,128.12,51.46561574]
[1741786225683,12.6602,128.2,128.11,44.4492]
[1741786225880,4.1281,128.2,128.11,44.4492]
[1741786226084,0.05121756,128.17,128.14,0.04993255]
[1741786226280,7.8047,128.15,128.14,0.04993255]
[1741786226877,0.05121756,128.17,128.14,0.04993255]
[1741786227473,165.02685752,128.26,128.16,51.46561574]
[1741786227682,41.63561917,128.24,128.17,40.12]
[1741786227883,41.63561917,128.24,128.19,7.8019]
[1741786228076,10.40890479,128.24,128.18,55.71701574]
[1741786228274,55.58961574,128.28,128.18,4.2514]
[1741786228478,7.8006,128.22,128.18,4.2514]
[1741786228684,0.0501154,128.24,128.22,0.05290959]
[1741786228884,7.7979,128.27,128.21,7.8006]
[1741786229075,3.9415,128.29,128.22,91.64058243]
[1741786229280,14.35040479,128.36,128.25,51.46561574]
[1741786229481,10.40890479,128.36,128.26,274.46]
[1741786229676,10.40890479,128.36,128.31,51.46561574]
[1741786229878,10.40890479,128.36,128.32,40.12]
[1741786230088,10.40890479,128.36,128.29,40.1]
[1741786230387,0.05859951,128.35,128.33,0.05816125]
[1741786230589,40.15859951,128.35,128.27,8.0256]
[1741786230788,51.46561574,128.34,128.23,4.058]
[1741786231487,91.56561574,128.34,128.24,51.46561574]
[1741786231889,91.56561574,128.34,128.21,325.90561574]
[1741786232094,7.85197413,128.3,128.28,0.05701054]
[1741786232280,0.05637413,128.3,128.28,1.054e-05]
[1741786232481,40.1,128.29,128.28,1.054e-05]
[1741786232684,56.1038,128.29,128.28,1.054e-05]
[1741786232888,58.4438,128.29,128.28,1.054e-05]
[1741786233088,56.1038,128.29,128.28,1.054e-05]
[1741786233292,58.4438,128.29,128.28,1.054e-05]
[1741786233491,56.1038,128.29,128.28,1.054e-05]
[1741786233689,48.3076,128.29,128.28,1.054e-05]
[1741786233895,0.05637413,128.3,128.28,1.054e-05]
[1741786234388,7.7962,128.29,128.28,1.054e-05]
[1741786235581,7.85207413,128.3,128.28,1.054e-05]
[1741786235789,0.05637413,128.3,128.28,1.054e-05]
[1741786236386,7.9719,128.35,128.28,1.054e-05]
[1741786236687,40.06,128.38,128.3,51.46561574]
[1741786236889,40.06,128.38,128.3,91.52561574]
[1741786237094,40.06,128.38,128.28,51.46561574]
[1741786237292,3.997,128.37,128.28,51.46561574]
[1741786237486,3.997,128.37,128.32,0.04953085]
[1741786237687,7.7938,128.33,128.32,0.04953085]
[1741786237893,0.05929007,128.34,128.26,40.06]
[1741786238093,55.46261574,128.37,128.26,40.06]
[1741786238294,40.06,128.36,128.26,40.06]
[1741786238800,7.7938,128.33,128.26,40.06]
[1741786239096,0.05467077,128.32,128.3,0.05910758]
[1741786239289,7.84917077,128.32,128.3,0.05910758]
[1741786239494,0.05467077,128.32,128.3,0.05910758]
[1741786240094,40.09467077,128.32,128.25,238.4382]
[1741786240297,40.09467077,128.32,128.25,234.14]
[1741786240899,40.09467077,128.32,128.25,285.60561574]
[1741786241095,0.05467077,128.32,128.25,285.60561574]
[1741786241296,0.05467077,128.32,128.28,51.46561574]
[1741786241494,0.05467077,128.32,128.28,91.48561574]
[1741786241689,3.997,128.37,128.31,51.46561574]
[1741786241894,4.0107,128.39,128.31,51.46561574]
[1741786242289,43.9922,128.41,128.31,51.46561574]
[1741786242496,43.9922,128.41,128.32,40.02]
[1741786242691,43.9922,128.41,128.33,234.0]
[1741786242891,7.84454585,128.38,128.35,0.04983127]
[1741786243096,0.05364585,128.38,128.35,0.04983127]
[1741786243604,3.977,128.42,128.35,0.04983127]
[1741786244398,3.977,128.42,128.36,7.7917]
[1741786244606,7.7866,128.45,128.37,51.46561574]
[1741786244807,44.0037,128.47,128.38,7.7905]
[1741786245007,0.05809259,128.4,128.38,0.05420549]
[1741786245209,0.05247646,128.4,128.38,0.0559431]
[1741786245413,44.0037,128.47,128.38,0.0559431]
[1741786245614,44.0037,128.47,128.36,40.02]
[1741786245915,44.0037,128.47,128.37,51.46561574]
[1741786246517,0.05373765,128.43,128.41,0.05931442]
[1741786247812,0.05373765,128.43,128.32,277.8029]
[1741786248007,0.05373765,128.43,128.32,237.8029]
[1741786248205,40.0,128.44,128.32,242.1109]
[1741786248518,63.51,128.44,128.27,51.46561574]
[1741786248719,51.46561574,128.37,128.23,242.0957]
[1741786249015,48.124,128.36,128.25,51.46561574]
[1741786249206,40.0,128.35,128.25,51.46561574]
[1741786249411,7.7935,128.34,128.28,51.46561574]
[1741786249613,8.124,128.36,128.29,7.7961]
[1741786249810,8.124,128.36,128.28,91.46561574]
[1741786250314,0.05174658,128.33,128.31,0.05566999]
[1741786250515,40.05174658,128.33,128.23,242.0957]
[1741786250718,40.0,128.33,128.23,242.0957]
[1741786251314,51.46561574,128.32,128.23,233.86]
[1741786251815,0.05088848,128.29,128.26,0.05375699]
[1741786252014,7.7974,128.27,128.26,0.05375699]
[1741786253020,7.7969,128.28,128.26,0.05375699]
[1741786253315,40.05088848,128.29,128.26,0.05375699]
[1741786253512,55.38661574,128.28,128.17,242.0677]
[1741786253713,55.38661574,128.28,128.17,233.92]
[1741786254711,0.05488775,128.24,128.21,0.05091766]
[1741786255619,0.05488775,128.24,128.21,40.05091766]
[1741786255819,0.05488775,128.24,128.21,47.85151766]
[1741786256017,0.05488775,128.24,128.22,51.46561574]
[1741786256218,40.0,128.37,128.22,102.93123148]
[1741786256415,40.0,128.37,128.27,51.46561574]
[1741786256821,44.1161,128.33,128.26,233.96]
[1741786257319,0.05936576,128.31,128.28,0.0497412]
[1741786257821,7.85446576,128.31,128.28,0.0497412]
[1741786258017,0.05936576,128.31,128.28,0.0497412]
[1741786258225,0.05936576,128.31,128.28,4.12e-05]
[1741786258422,7.7962,128.29,128.28,4.12e-05]
[1741786259118,11.8537,128.3,128.28,4.12e-05]
[1741786259314,4.0579,128.3,128.28,4.12e-05]
[1741786259518,0.05936576,128.31,128.28,4.12e-05]
[1741786260519,40.05936576,128.31,128.28,4.12e-05]
[1741786260824,7.7962,128.29,128.28,4.12e-05]
[1741786261420,0.05936576,128.31,128.28,4.12e-05]
[1741786261626,21.1081428,128.37,128.29,233.94]
[1741786261822,7.7925,128.36,128.31,59.26021574]
[1741786262027,16.9881428,128.37,128.29,233.94]
[1741786262225,41.63561917,128.36,128.29,233.94]
[1741786262426,41.63561917,128.36,128.35,51.46561574]
[1741786262631,80.66816662,128.37,128.35,91.46561574]
[1741786262931,74.29241405,128.37,128.36,7.7919]
[1741786263330,202.05042322,128.39,128.36,2.34]
[1741786263525,69.81990108,128.4,128.38,51.46561574]
[1741786263726,69.81990108,128.4,128.39,40.0]
[1741786263933,54.58700108,128.4,128.39,47.7901]
[1741786264132,35.74997395,128.45,128.39,47.7901]
[1741786264133,35.74997395,128.45,128.39,93.80561574]
[1741786264326,126.91501011,128.49,128.47,7.7851]
[1741786264635,126.91501011,128.49,128.44,102.93123148]
[1741786264636,126.91501011,128.49,128.48,325.42561574]
[1741786264830,35.74997395,128.53,128.48,325.42561574]
[1741786265029,35.74997395,128.53,128.52,51.46561574]
[1741786265228,35.74997395,128.53,128.52,91.46561574]
[1741786265432,35.74997395,128.53,128.52,153.05343148]
[1741786265627,23.96327395,128.53,128.52,153.05343148]
[1741786265831,154.25067626,128.54,128.52,153.05343148]
[1741786266023,154.30679744,128.54,128.52,145.27123148]
[1741786266227,3.9983,128.64,128.52,338.19467473]
[1741786266430,7.7786,128.58,128.53,39.98]
[1741786266628,55.46391574,128.64,128.53,39.98]
[1741786266930,55.46391574,128.64,128.52,335.85467473]
[1741786266931,51.46561574,128.61,128.52,284.38905899]
[1741786267237,51.46561574,128.61,128.54,98.06519275]
[1741786267436,0.05598837,128.58,128.55,0.05208597]
[1741786267735,7.7794,128.57,128.54,147.85171202]
[1741786267932,0.05109785,128.58,128.55,0.05981777]
[1741786268426,91.38715299,128.61,128.52,176.51734697]
[1741786268630,39.98,128.61,128.52,176.51734697]
[1741786268831,55.46391574,128.64,128.52,227.98296271]
[1741786269027,3.9983,128.64,128.55,51.46561574]
[1741786269225,3.9983,128.64,128.56,273.66]
[1741786269435,51.46561574,128.62,128.52,176.51734697]
[1741786269631,7.7785,128.59,128.58,0.05428451]
[1741786269833,91.40561574,128.59,128.53,98.03071061]
[1741786270033,7.781,128.54,128.53,98.03071061]
[1741786270233,51.46561574,128.56,128.53,98.03071061]
[1741786270433,51.46561574,128.64,128.53,98.03071061]
[1741786270740,4.1113,128.63,128.54,176.48286482]
[1741786270937,51.46561574,128.61,128.54,176.48286482]
[1741786271132,0.05651179,128.59,128.57,0.05133799]
[1741786271338,4.1113,128.63,128.57,0.05133799]
[1741786271537,44.0513,128.63,128.57,0.05133799]
[1741786271739,7.7773,128.61,128.57,0.05133799]
[1741786272038,4.1113,128.63,128.58,538.49773753]
[1741786272445,438.46561574,128.82,128.6,51.46561574]
[1741786272742,51.46561574,128.7,128.59,273.58]
[1741786272943,44.19184991,128.72,128.7,0.05972354]
[1741786273245,0.30936646,128.68,128.63,39.94]
[1741786274345,0.30936646,128.68,128.65,59.23991574]
[1741786274539,0.05630147,128.67,128.65,51.46561574]
[1741786274740,0.05630147,128.67,128.64,0.05598773]
[1741786274940,0.05630147,128.67,128.64,39.97598773]
[1741786275247,0.05630147,128.67,128.64,0.05598773]
[1741786275947,0.05630147,128.67,128.61,126.4217613]
[1741786276146,7.7762,128.62,128.61,126.4217613]
[1741786276447,7.7762,128.62,128.58,176.51734697]
[1741786276635,40.22936646,128.68,128.58,176.51734697]
[1741786276837,0.30936646,128.68,128.61,51.46561574]
[1741786277041,0.30936646,128.68,128.64,51.46561574]
[1741786277341,0.0506053,128.66,128.65,39.9]
[1741786278748,0.30936646,128.68,128.65,39.9]
[1741786279245,0.30936646,128.68,128.67,7.7732]
[1741786280048,15.5241,128.86,128.67,53.80561574]
[1741786280242,3.9519,128.81,128.7,51.46561574]
[1741786280448,3.9519,128.81,128.71,39.88]
[1741786280850,51.46561574,128.79,128.71,39.88]
[1741786281352,0.05615042,128.76,128.74,0.05930258]
[1741786281551,0.05615042,128.76,128.75,39.88]
[1741786281951,0.05615042,128.76,128.75,42.22]
[1741786282142,4.3077,128.86,128.79,7.7658]
[1741786282447,3.9854,128.92,128.8,39.88]
[1741786282751,8.2931,128.92,128.82,59.22971574]
[1741786283246,8.2931,128.92,128.82,51.46561574]
[1741786283449,0.05925734,128.88,128.86,0.05381797]
[1741786283642,0.05925734,128.88,128.87,39.88]
[1741786284046,0.05925734,128.88,128.87,42.2]
[1741786284350,0.05925734,128.88,128.87,39.88]
[1741786284547,0.05925734,128.88,128.86,0.05381797]
[1741786286144,0.05925734,128.88,128.87,284.58561574]
[1741786286344,12.3633,128.99,128.87,284.58561574]
[1741786287145,7.7574,128.94,128.87,284.58561574]
[1741786287349,12.3633,128.99,128.87,284.58561574]
[1741786287548,0.0408458,128.92,128.89,0.05947396]
[1741786287746,0.0408458,128.92,128.88,39.84]
[1741786287948,91.30561574,128.97,128.89,0.05046568]
[1741786288153,7.7593,128.9,128.89,0.05046568]
[1741786288453,0.0408458,128.91,128.84,233.12]
[1741786288454,39.84,128.93,128.88,0.05050028]
[1741786288650,7.7599,128.89,128.88,2.8e-07]
[1741786288856,39.88,128.93,128.82,51.46561574]
[1741786289146,8.3279,128.9,128.82,51.46561574]
[1741786289652,51.46561574,128.88,128.73,40.06]
[1741786289856,0.05806125,128.87,128.73,40.06]
[1741786290151,7.7597,128.9,128.82,51.46561574]
[1741786290452,51.46561574,128.94,128.83,40.34]
[1741786290651,7.7607,128.88,128.83,40.34]
[1741786290847,51.46561574,128.91,128.82,233.04]
[1741786291053,0.05597071,128.87,128.75,233.04]
[1741786291355,51.46561574,128.85,128.75,233.04]
[1741786291543,4.2713,128.84,128.79,51.46561574]
[1741786291749,7.7639,128.83,128.76,51.46561574]
[1741786291949,40.64,128.85,128.76,51.46561574]
[1741786292155,40.64,128.85,128.75,233.04]
[1741786292352,0.05876055,128.82,128.75,233.04]
[1741786292655,0.05876055,128.82,128.75,284.50561574]
[1741786292856,0.05876055,128.82,128.75,233.04]
[1741786293151,0.05876055,128.82,128.65,3.4931]
[1741786293362,51.46561574,128.8,128.68,274.3]
[1741786293551,0.05622278,128.77,128.75,0.04959708]
[1741786293956,12.5806,128.79,128.68,274.3]
[1741786294156,0.05547661,128.77,128.75,0.05602735]
[1741786294354,0.05547661,128.77,128.68,274.3]
[1741786294654,41.32,128.76,128.68,274.3]
[1741786294956,49.0881,128.76,128.68,274.3]
[1741786295156,41.32,128.76,128.68,274.3]
[1741786295753,54.1806,128.79,128.69,51.46561574]
[1741786295958,0.05861505,128.73,128.71,0.05032398]
[1741786296159,51.46561574,128.78,128.68,233.02]
[1741786296359,0.0587444,128.73,128.71,0.05475457]
[1741786296760,41.64,128.75,128.71,0.05475457]
[1741786296961,0.05692603,128.73,128.71,0.05475457]
[1741786297256,41.98,128.84,128.7,102.93123148]
[1741786297452,7.9519,128.85,128.75,51.46561574]
[1741786297655,0.05356621,128.78,128.75,93.46561574]
[1741786297954,7.9519,128.85,128.75,93.46561574]
[1741786298160,0.04962046,128.78,128.75,0.05831623]
[1741786298363,42.06,128.84,128.73,51.46561574]
[1741786298563,0.05697315,128.78,128.75,0.0565956]
[1741786298769,42.06,128.84,128.72,42.1]
[1741786299057,0.05033962,128.78,128.75,0.04955557]
[1741786299264,42.46,128.8,128.7,51.46561574]
[1741786299458,0.04979791,128.78,128.75,0.0548647]
[1741786299658,0.04979791,128.78,128.69,42.46]
[1741786299860,55.62741574,128.79,128.69,42.46]
[1741786300061,7.7673,128.77,128.69,7.7715]
[1741786300252,4.1618,128.79,128.68,233.02]
[1741786300458,4.1618,128.79,128.69,51.46561574]
[1741786300864,0.05923582,128.75,128.73,0.04954603]
[1741786301258,7.7689,128.74,128.73,0.04954603]
[1741786301460,0.05923582,128.75,128.73,0.04954603]
[1741786301655,42.63923582,128.75,128.68,233.02]
[1741786301864,3.8954,128.74,128.68,233.02]
[1741786302261,11.6644,128.74,128.68,233.02]
[1741786302465,4.1618,128.79,128.7,51.46561574]
[1741786302864,0.05792848,128.76,128.73,0.05876364]
[1741786303258,7.7689,128.74,128.73,0.05876364]
[1741786303562,0.05792848,128.76,128.73,0.05876364]
[1741786303757,7.7688,128.75,128.73,0.05876364]
[1741786303963,7.7688,128.75,128.69,42.52]
[1741786304163,0.05792848,128.76,128.68,233.02]
[1741786304361,4.1618,128.79,128.69,51.46561574]
[1741786304561,4.1618,128.79,128.68,233.02]
[1741786304562,51.46561574,128.78,128.68,233.02]
[1741786304756,55.40231574,128.78,128.68,233.02]
[1741786304956,7.7696,128.73,128.68,233.02]
[1741786305156,0.05513635,128.74,128.72,0.05807332]
[1741786305363,0.05513635,128.74,128.68,233.02]
[1741786305563,0.05513635,128.74,128.72,0.04981811]
[1741786306566,3.9599,128.81,128.73,94.38561574]
[1741786306965,3.9599,128.81,128.7,51.46561574]
[1741786307165,98.46551574,128.81,128.68,233.02]
[1741786307363,51.46561574,128.78,128.68,233.02]
[1741786307562,7.7682,128.76,128.7,7.7711]
[1741786307759,0.05973296,128.74,128.72,0.05164265]
[1741786307965,43.42,128.73,128.64,51.46561574]
[1741786308168,55.69131574,128.72,128.61,233.1]
[1741786308372,51.46561574,128.69,128.58,51.46561574]
[1741786308666,7.774,128.66,128.59,7.7779]
[1741786308865,51.46561574,128.69,128.56,43.48]
[1741786308866,43.46,128.67,128.56,43.48]
[1741786309168,0.05899944,128.64,128.61,0.05690212]
[1741786310171,7.83409944,128.64,128.61,0.05690212]
[1741786310358,0.05899944,128.64,128.61,0.05690212]
[1741786310563,43.36,128.63,128.55,233.1]
[1741786311368,3.973,128.68,128.57,51.46561574]
[1741786311670,0.04909137,128.64,128.63,51.46561574]
[1741786311968,51.46561574,128.76,128.63,328.02561574]
[1741786312159,51.46561574,128.76,128.66,51.46561574]
[1741786312360,51.46561574,128.76,128.63,276.56]
[1741786312361,43.46,128.73,128.63,328.02561574]
[1741786312768,7.7708,128.71,128.66,7.7733]
[1741786312968,0.05666616,128.69,128.66,0.05494961]
[1741786313468,0.05666616,128.69,128.68,7.7726]
[1741786314168,0.05666616,128.69,128.66,0.05494961]
[1741786314371,0.05666616,128.69,128.66,51.52056535]
[1741786314568,0.00019455,128.69,128.68,7.7726]
[1741786314868,43.38,128.78,128.67,43.38]
[1741786315066,7.7666,128.78,128.72,7.77]
[1741786315363,4.025,128.79,128.71,51.46561574]
[1741786315565,4.025,128.79,128.68,51.46561574]
[1741786316259,0.05487124,128.75,128.72,0.05642507]
[1741786316668,51.46561574,128.88,128.74,51.46561574]
[1741786316863,7.922,128.85,128.77,51.46561574]
[1741786317265,4.025,128.87,128.82,7.7641]
[1741786317462,4.025,128.87,128.77,43.5]
[1741786317664,51.46561574,128.86,128.75,51.46561574]
[1741786317864,0.05335333,128.83,128.81,0.05156082]
[1741786318066,95.07896907,128.83,128.71,233.14]
[1741786318260,51.46561574,128.8,128.71,233.14]
[1741786318574,43.78,128.79,128.67,43.84]
[1741786318760,51.46561574,128.77,128.66,43.84]
[1741786319168,0.05322269,128.73,128.7,0.05149089]
[1741786321471,0.05322269,128.73,128.65,233.14]
[1741786321771,51.46561574,128.71,128.61,43.94]
[1741786322071,51.46561574,128.68,128.55,51.46561574]
[1741786322272,51.46561574,128.65,128.53,0.0874]
[1741786322576,51.46561574,128.65,128.53,43.9874]
[1741786322766,0.05922326,128.6,128.58,0.05402512]
[1741786323068,51.46561574,128.62,128.52,316.02365806]
[1741786323274,3.9891,128.61,128.52,264.55804232]
[1741786323471,3.9891,128.61,128.52,316.02365806]
[1741786323666,3.9891,128.61,128.55,51.46561574]
[1741786324066,11.7659,128.61,128.54,43.86]
[1741786324267,0.04991738,128.59,128.54,43.86]
[1741786324467,0.04991738,128.59,128.57,0.05084738]
[1741786325973,0.04991738,128.59,128.47,468.71107291]
[1741786325974,43.76,128.58,128.47,468.71107291]
[1741786326171,7.7846,128.49,128.47,424.95107291]
[1741786326373,43.76,128.51,128.47,424.95107291]
[1741786326675,43.8,128.51,128.47,424.95107291]
[1741786327075,0.05977276,128.5,128.48,0.05900878]
[1741786327472,48.0251,128.55,128.48,0.05900878]
[1741786327677,0.05489393,128.5,128.48,0.05900878]
[1741786327878,4.2051,128.55,128.48,0.05900878]
[1741786328074,47.9291,128.61,128.5,51.46561574]
[1741786328473,0.05089262,128.57,128.49,233.3]
[1741786328680,44.07089262,128.57,128.54,0.05335041]
[1741786328873,7.7815,128.54,128.49,233.3]
[1741786329073,0.05784873,128.54,128.49,233.3]
[1741786329267,7.7817,128.53,128.49,233.3]
[1741786329475,0.05784873,128.54,128.49,233.3]
[1741786329880,3.9891,128.61,128.52,51.46561574]
[1741786330074,3.9891,128.61,128.53,43.98]
[1741786330883,7.7785,128.59,128.53,43.98]
[1741786331181,0.05165974,128.58,128.56,0.05939415]
[1741786335286,0.05165974,128.58,128.48,43.74]
[1741786335477,43.74,128.58,128.48,95.20561574]
[1741786335673,43.76,128.59,128.48,95.20561574]
[1741786335878,43.76,128.59,128.52,7.7822]
[1741786336081,43.76,128.59,128.48,95.20561574]
[1741786336487,0.0496862,128.55,128.53,0.05445631]
[1741786336682,43.8496862,128.55,128.44,51.46561574]
[1741786337075,3.9534,128.54,128.43,233.38]
[1741786337375,51.46561574,128.53,128.43,277.16]
[1741786337582,7.7834,128.51,128.45,7.7861]
[1741786337782,43.7,128.51,128.43,277.16]
[1741786337988,0.05497399,128.49,128.47,0.05040612]
[1741786339587,0.05497399,128.49,128.43,233.38]
[1741786339885,51.52058973,128.49,128.37,288.70341574]
[1741786340084,51.46561574,128.49,128.37,288.70341574]
[1741786340289,7.7866,128.45,128.4,7.7891]
[1741786340492,43.74,128.46,128.37,237.2378]
[1741786340687,51.46561574,128.49,128.37,237.2378]
[1741786340891,0.05203441,128.43,128.4,0.04315562]
[1741786341089,51.46561574,128.48,128.37,288.70341574]
[1741786341390,0.05158177,128.43,128.4,0.04315562]
[1741786341695,51.46561574,128.41,128.31,233.44]
[1741786341989,3.9655,128.42,128.32,43.8]
[1741786342291,11.7539,128.42,128.37,7.7908]
[1741786342891,43.82,128.44,128.36,51.46561574]
[1741786343090,0.05702241,128.41,128.39,51.46561574]
[1741786343395,284.90561574,128.52,128.39,51.46561574]
[1741786343396,7.7841,128.49,128.4,328.84561574]
[1741786343596,43.84,128.53,128.43,51.46561574]
[1741786343798,3.9655,128.54,128.46,51.46561574]